[Event "Titled Tuesday Blitz November 15 Early 2022"]
[White "Liu, Xiangyi"]
[Black "Lauridsen, Jesper Morch"]
[WhiteFideId "8605718"]
[BlackFideId "1401890"]
[WhiteElo "2323"]
[BlackElo "2219"]
[Result "1-0"]
[Round "09"]
[TimeControl "180+1"]
[Date "2022.11.16"]
[WhiteClock "0:00:46"]
[BlackClock "0:00:45"]

1. e4 {[%clk 0:03:00]}  e5 {[%clk 0:02:57]} 2. Nf3 {[%clk 0:03:00]}  Nf6 {[%clk 0:02:57]} 3. d4 {[%clk 0:02:59]}  Nxe4 {[%clk 0:02:55]} 4. Bd3 {[%clk 0:02:58]}  d5 {[%clk 0:02:54]} 5. dxe5 {[%clk 0:02:58]}  Nc5 {[%clk 0:02:52]} 6. Be2 {[%clk 0:02:57]}  Be7 {[%clk 0:02:52]} 7. Nc3 {[%clk 0:02:56]}  c6 {[%clk 0:02:50]} 8. O-O {[%clk 0:02:57]}  O-O {[%clk 0:02:49]} 9. Nd4 {[%clk 0:02:56]}  a5 {[%clk 0:02:35]} 10. f4 {[%clk 0:02:47]}  a4 {[%clk 0:02:35]} 11. Kh1 {[%clk 0:02:44]}  a3 {[%clk 0:02:34]} 12. f5 {[%clk 0:02:39]}  axb2 {[%clk 0:02:27]} 13. Bxb2 {[%clk 0:02:40]}  Bg5 {[%clk 0:02:17]} 14. Bg4 {[%clk 0:02:06]}  Na4 {[%clk 0:02:02]} 15. Nxa4 {[%clk 0:02:00]}  Rxa4 {[%clk 0:01:59]} 16. f6 {[%clk 0:01:41]}  g6 {[%clk 0:01:47]} 17. e6 {[%clk 0:01:23]}  Bxf6 {[%clk 0:01:31]} 18. Nxc6 {[%clk 0:01:21]}  Nxc6 {[%clk 0:01:12]} 19. Bxf6 {[%clk 0:01:20]}  Qc7 {[%clk 0:01:07]} 20. c3 {[%clk 0:01:02]}  Bxe6 {[%clk 0:00:58]} 21. Bxe6 {[%clk 0:01:01]}  fxe6 {[%clk 0:00:58]} 22. Qxa4 {[%clk 0:01:01]}  e5 {[%clk 0:00:48]} 23. Qb3 {[%clk 0:00:56]}  Qd6 {[%clk 0:00:48]} 24. Bg5 {[%clk 0:00:47]}  Re8 {[%clk 0:00:48]} 25. Qxb7 {[%clk 0:00:47]}  e4 {[%clk 0:00:45]} 26. Qf7+ {[%clk 0:00:46]} 1-0


[Site "https://www.chess.com"]

[Event "Titled Tuesday Blitz November 15 Early 2022"]
[White "Madaminov, Mukhiddin"]
[Black "Harshavardhan G B"]
[WhiteFideId "14210703"]
[BlackFideId "25059009"]
[WhiteElo "2341"]
[BlackElo "2333"]
[Result "1-0"]
[Round "09"]
[TimeControl "180+1"]
[Date "2022.11.15"]
[WhiteClock "0:00:05"]
[BlackClock "0:00:04"]

1. d4 {[%clk 0:02:56]}  d5 {[%clk 0:02:58]} 2. Nc3 {[%clk 0:02:51]}  Nf6 {[%clk 0:02:57]} 3. Bf4 {[%clk 0:02:51]}  c5 {[%clk 0:02:50]} 4. e4 {[%clk 0:02:50]}  Nxe4 {[%clk 0:02:47]} 5. Nxe4 {[%clk 0:02:51]}  dxe4 {[%clk 0:02:47]} 6. dxc5 {[%clk 0:02:51]}  Qa5+ {[%clk 0:02:45]} 7. c3 {[%clk 0:02:51]}  Qxc5 {[%clk 0:02:41]} 8. Qa4+ {[%clk 0:02:51]}  Nc6 {[%clk 0:02:41]} 9. Qxe4 {[%clk 0:02:52]}  Bf5 {[%clk 0:02:41]} 10. Qa4 {[%clk 0:02:52]}  Rd8 {[%clk 0:02:36]} 11. Nf3 {[%clk 0:02:38]}  Qd5 {[%clk 0:02:05]} 12. Bc4 {[%clk 0:02:15]}  Qe4+ {[%clk 0:01:56]} 13. Be3 {[%clk 0:02:15]}  a6 {[%clk 0:01:49]} 14. Bxf7+ {[%clk 0:02:13]}  Kd7 {[%clk 0:01:45]} 15. Qxe4 {[%clk 0:02:07]}  Bxe4 {[%clk 0:01:44]} 16. Bb6 {[%clk 0:02:06]}  Bxf3 {[%clk 0:01:21]} 17. gxf3 {[%clk 0:02:04]}  e6 {[%clk 0:01:16]} 18. Rd1+ {[%clk 0:01:46]}  Ke7 {[%clk 0:01:15]} 19. Bxd8+ {[%clk 0:01:47]}  Nxd8 {[%clk 0:01:16]} 20. Bh5 {[%clk 0:01:47]}  g6 {[%clk 0:01:17]} 21. Bg4 {[%clk 0:01:47]}  Nc6 {[%clk 0:01:13]} 22. Ke2 {[%clk 0:01:45]}  h5 {[%clk 0:01:11]} 23. Bh3 {[%clk 0:01:45]}  Bh6 {[%clk 0:01:11]} 24. Rhg1 {[%clk 0:01:43]}  Ne5 {[%clk 0:01:11]} 25. Rd4 {[%clk 0:01:41]}  Rf8 {[%clk 0:01:09]} 26. Bg2 {[%clk 0:01:24]}  Bf4 {[%clk 0:01:07]} 27. h3 {[%clk 0:01:21]}  g5 {[%clk 0:01:05]} 28. Rgd1 {[%clk 0:01:16]}  h4 {[%clk 0:01:00]} 29. Bf1 {[%clk 0:01:12]}  Rc8 {[%clk 0:00:55]} 30. Rb1 {[%clk 0:01:03]}  Nc6 {[%clk 0:00:53]} 31. Rc4 {[%clk 0:00:57]}  b5 {[%clk 0:00:37]} 32. Re4 {[%clk 0:00:47]}  Ne5 {[%clk 0:00:34]} 33. a4 {[%clk 0:00:38]}  Rb8 {[%clk 0:00:31]} 34. axb5 {[%clk 0:00:36]}  axb5 {[%clk 0:00:30]} 35. Ra1 {[%clk 0:00:36]}  Rd8 {[%clk 0:00:27]} 36. Rd4 {[%clk 0:00:33]}  Rc8 {[%clk 0:00:24]} 37. Ra7+ {[%clk 0:00:31]}  Kf6 {[%clk 0:00:24]} 38. Ra5 {[%clk 0:00:31]}  Nc6 {[%clk 0:00:23]} 39. Rxf4+ {[%clk 0:00:26]}  gxf4 {[%clk 0:00:24]} 40. Rxb5 {[%clk 0:00:27]}  Ne5 {[%clk 0:00:21]} 41. Rb4 {[%clk 0:00:26]}  Kf5 {[%clk 0:00:20]} 42. Kd1 {[%clk 0:00:17]}  Rd8+ {[%clk 0:00:20]} 43. Kc2 {[%clk 0:00:18]}  Nxf3 {[%clk 0:00:20]} 44. Bd3+ {[%clk 0:00:18]}  Kg5 {[%clk 0:00:19]} 45. Rb5+ {[%clk 0:00:18]}  Kf6 {[%clk 0:00:19]} 46. Be4 {[%clk 0:00:07]}  Rd2+ {[%clk 0:00:20]} 47. Kc1 {[%clk 0:00:04]}  Rxf2 {[%clk 0:00:20]} 48. Rh5 {[%clk 0:00:04]}  Ng5 {[%clk 0:00:19]} 49. Bb7 {[%clk 0:00:03]}  e5 {[%clk 0:00:17]} 50. Rh6+ {[%clk 0:00:04]}  Kg7 {[%clk 0:00:16]} 51. Rxh4 {[%clk 0:00:04]}  e4 {[%clk 0:00:16]} 52. Rg4 {[%clk 0:00:04]}  Kf6 {[%clk 0:00:17]} 53. h4 {[%clk 0:00:05]}  e3 {[%clk 0:00:14]} 54. hxg5+ {[%clk 0:00:03]}  Kf5 {[%clk 0:00:14]} 55. Bc8+ {[%clk 0:00:04]}  Kg6 {[%clk 0:00:14]} 56. Ba6 {[%clk 0:00:04]}  f3 {[%clk 0:00:13]} 57. Re4 {[%clk 0:00:04]}  e2 {[%clk 0:00:12]} 58. Bxe2 {[%clk 0:00:05]}  fxe2 {[%clk 0:00:13]} 59. Kd2 {[%clk 0:00:03]}  e1=Q+ {[%clk 0:00:12]} 60. Kxe1 {[%clk 0:00:03]}  Rxb2 {[%clk 0:00:13]} 61. Re5 {[%clk 0:00:04]}  Rc2 {[%clk 0:00:13]} 62. Rc5 {[%clk 0:00:05]}  Rh2 {[%clk 0:00:11]} 63. Kd1 {[%clk 0:00:05]}  Rg2 {[%clk 0:00:11]} 64. Kc1 {[%clk 0:00:05]}  Rf2 {[%clk 0:00:07]} 65. Rd5 {[%clk 0:00:04]}  Rg2 {[%clk 0:00:07]} 66. c4 {[%clk 0:00:05]}  Rh2 {[%clk 0:00:07]} 67. Rd2 {[%clk 0:00:03]}  Rh4 {[%clk 0:00:06]} 68. Rc2 {[%clk 0:00:02]}  Kxg5 {[%clk 0:00:07]} 69. Kb2 {[%clk 0:00:03]}  Kf6 {[%clk 0:00:06]} 70. Kb3 {[%clk 0:00:03]}  Ke6 {[%clk 0:00:07]} 71. Rd2 {[%clk 0:00:04]}  Rh8 {[%clk 0:00:06]} 72. c5 {[%clk 0:00:04]}  Rh1 {[%clk 0:00:06]} 73. Kc4 {[%clk 0:00:04]}  Rb1 {[%clk 0:00:04]} 74. c6 {[%clk 0:00:05]}  Ke7 {[%clk 0:00:04]} 75. Kc5 {[%clk 0:00:05]}  Rc1+ {[%clk 0:00:04]} 76. Kb6 {[%clk 0:00:05]}  Rb1+ {[%clk 0:00:05]} 77. Kc7 {[%clk 0:00:06]}  Rb3 {[%clk 0:00:05]} 78. Kc8 {[%clk 0:00:06]}  Rb4 {[%clk 0:00:05]} 79. c7 {[%clk 0:00:05]}  Rb1 {[%clk 0:00:04]} 80. Re2+ {[%clk 0:00:06]}  Kf7 {[%clk 0:00:04]} 81. Re4 {[%clk 0:00:06]}  Rd1 {[%clk 0:00:02]} 82. Kb7 {[%clk 0:00:05]}  Rb1+ {[%clk 0:00:03]} 83. Kc6 {[%clk 0:00:06]}  Rc1+ {[%clk 0:00:04]} 84. Kd6 {[%clk 0:00:06]}  Rd1+ {[%clk 0:00:04]} 85. Kc5 {[%clk 0:00:06]}  Rd7 {[%clk 0:00:04]} 86. c8=Q {[%clk 0:00:05]} 1-0


[Site "https://www.chess.com"]

[Event "Titled Tuesday Blitz November 15 Early 2022"]
[White "Manukyan, Sargis A."]
[Black "Averjanov, Alexey"]
[WhiteFideId "13303970"]
[BlackFideId "14109867"]
[WhiteElo "2187"]
[BlackElo "2626"]
[Result "1-0"]
[Round "09"]
[TimeControl "180+1"]
[Date "2022.11.16"]
[WhiteClock "0:01:35"]
[BlackClock "0:02:34"]

1. d4 {[%clk 0:03:00]}  d5 {[%clk 0:02:59]} 2. c4 {[%clk 0:03:00]}  dxc4 {[%clk 0:02:55]} 3. e3 {[%clk 0:02:59]}  Nf6 {[%clk 0:02:55]} 4. Bxc4 {[%clk 0:02:59]}  e6 {[%clk 0:02:55]} 5. Nf3 {[%clk 0:02:58]}  a6 {[%clk 0:02:55]} 6. O-O {[%clk 0:02:58]}  b5 {[%clk 0:02:56]} 7. Bd3 {[%clk 0:02:55]}  Bb7 {[%clk 0:02:56]} 8. a4 {[%clk 0:02:55]}  b4 {[%clk 0:02:56]} 9. Nbd2 {[%clk 0:02:55]}  Nbd7 {[%clk 0:02:55]} 10. a5 {[%clk 0:02:55]}  c5 {[%clk 0:02:55]} 11. Nc4 {[%clk 0:02:55]}  Qc7 {[%clk 0:02:55]} 12. Re1 {[%clk 0:02:33]}  Be7 {[%clk 0:02:54]} 13. e4 {[%clk 0:02:32]}  cxd4 {[%clk 0:02:51]} 14. e5 {[%clk 0:02:31]}  Nd5 {[%clk 0:02:48]} 15. Bg5 {[%clk 0:02:20]}  O-O {[%clk 0:02:39]} 16. Bxe7 {[%clk 0:02:15]}  Nxe7 {[%clk 0:02:39]} 17. Bxh7+ {[%clk 0:01:53]}  Kxh7 {[%clk 0:02:39]} 18. Ng5+ {[%clk 0:01:54]}  Kg6 {[%clk 0:02:34]} 19. Qg4 {[%clk 0:01:49]}  Qxc4 {[%clk 0:02:34]} 20. Nxe6+ {[%clk 0:01:41]}  Kh6 {[%clk 0:02:34]} 21. Qxg7+ {[%clk 0:01:35]}  Kh5 {[%clk 0:02:34]} 22. Qg5# {[%clk 0:01:35]} 1-0


[Site "https://www.chess.com"]

[Event "Titled Tuesday Blitz November 15 Early 2022"]
[White "Marcolino, Daniel Mattos"]
[Black "Clawitter, Craig"]
[WhiteFideId "2106841"]
[BlackFideId "2023105"]
[WhiteElo "2111"]
[BlackElo "2201"]
[Result "1/2-1/2"]
[Round "09"]
[TimeControl "180+1"]
[Date "2022.11.16"]
[WhiteClock "0:00:05"]
[BlackClock "0:00:08"]

1. d4 {[%clk 0:03:00]}  e6 {[%clk 0:03:00]} 2. Nf3 {[%clk 0:02:57]}  Nf6 {[%clk 0:03:00]} 3. g3 {[%clk 0:02:57]}  d5 {[%clk 0:02:59]} 4. Bg2 {[%clk 0:02:57]}  Be7 {[%clk 0:03:00]} 5. O-O {[%clk 0:02:57]}  O-O {[%clk 0:03:00]} 6. c4 {[%clk 0:02:58]}  dxc4 {[%clk 0:03:01]} 7. Qc2 {[%clk 0:02:58]}  a6 {[%clk 0:03:01]} 8. a4 {[%clk 0:02:59]}  Bd7 {[%clk 0:02:59]} 9. Qxc4 {[%clk 0:02:59]}  Bc6 {[%clk 0:02:56]} 10. Bg5 {[%clk 0:02:57]}  Nbd7 {[%clk 0:02:50]} 11. Nc3 {[%clk 0:02:52]}  Nb6 {[%clk 0:02:32]} 12. Qd3 {[%clk 0:02:44]}  Nbd5 {[%clk 0:02:25]} 13. Nxd5 {[%clk 0:02:23]}  Nxd5 {[%clk 0:02:05]} 14. Bxe7 {[%clk 0:02:23]}  Nxe7 {[%clk 0:01:59]} 15. e4 {[%clk 0:02:13]}  a5 {[%clk 0:01:46]} 16. Ne5 {[%clk 0:02:04]}  Be8 {[%clk 0:01:42]} 17. Rfd1 {[%clk 0:01:46]}  Ng6 {[%clk 0:01:21]} 18. Nc4 {[%clk 0:01:38]}  c6 {[%clk 0:00:44]} 19. e5 {[%clk 0:01:35]}  Ra6 {[%clk 0:00:38]} 20. Nd6 {[%clk 0:01:34]}  Qb8 {[%clk 0:00:21]} 21. Ra3 {[%clk 0:01:27]}  b5 {[%clk 0:00:20]} 22. axb5 {[%clk 0:01:09]}  cxb5 {[%clk 0:00:20]} 23. Rda1 {[%clk 0:01:09]}  a4 {[%clk 0:00:15]} 24. b3 {[%clk 0:01:02]}  Bc6 {[%clk 0:00:11]} 25. Bxc6 {[%clk 0:00:59]}  Rxc6 {[%clk 0:00:12]} 26. bxa4 {[%clk 0:00:58]}  bxa4 {[%clk 0:00:13]} 27. Rxa4 {[%clk 0:00:59]}  f6 {[%clk 0:00:11]} 28. f4 {[%clk 0:00:28]}  fxe5 {[%clk 0:00:11]} 29. dxe5 {[%clk 0:00:24]}  Qb2 {[%clk 0:00:11]} 30. R4a2 {[%clk 0:00:23]}  Nxe5 {[%clk 0:00:10]} 31. fxe5 {[%clk 0:00:15]}  Qxe5 {[%clk 0:00:10]} 32. Ne4 {[%clk 0:00:12]}  Rc4 {[%clk 0:00:07]} 33. Nf2 {[%clk 0:00:11]}  Rd4 {[%clk 0:00:05]} 34. Qb3 {[%clk 0:00:09]}  Qd5 {[%clk 0:00:05]} 35. Qxd5 {[%clk 0:00:08]}  exd5 {[%clk 0:00:05]} 36. Ra8 {[%clk 0:00:09]}  Rd2 {[%clk 0:00:04]} 37. Rxf8+ {[%clk 0:00:08]}  Kxf8 {[%clk 0:00:05]} 38. Nh3 {[%clk 0:00:08]}  Ke7 {[%clk 0:00:05]} 39. Nf4 {[%clk 0:00:08]}  Kd6 {[%clk 0:00:05]} 40. h4 {[%clk 0:00:08]}  d4 {[%clk 0:00:05]} 41. Ra7 {[%clk 0:00:08]}  d3 {[%clk 0:00:04]} 42. Rxg7 {[%clk 0:00:08]}  Ke5 {[%clk 0:00:04]} 43. Re7+ {[%clk 0:00:06]}  Kf5 {[%clk 0:00:04]} 44. Rd7 {[%clk 0:00:05]}  Ke4 {[%clk 0:00:04]} 45. Rxd3 {[%clk 0:00:01]}  Rxd3 {[%clk 0:00:04]} 46. Nxd3 {[%clk 0:00:02]}  Kxd3 {[%clk 0:00:04]} 47. Kg2 {[%clk 0:00:03]}  Ke3 {[%clk 0:00:05]} 48. Kh3 {[%clk 0:00:03]}  Kf3 {[%clk 0:00:05]} 49. h5 {[%clk 0:00:04]}  h6 {[%clk 0:00:05]} 50. Kh4 {[%clk 0:00:04]}  Ke4 {[%clk 0:00:05]} 51. Kg4 {[%clk 0:00:04]}  Ke5 {[%clk 0:00:05]} 52. Kf3 {[%clk 0:00:03]}  Kf5 {[%clk 0:00:05]} 53. g4+ {[%clk 0:00:04]}  Kg5 {[%clk 0:00:06]} 54. Kg3 {[%clk 0:00:04]}  Kf6 {[%clk 0:00:06]} 55. Kf4 {[%clk 0:00:04]}  Ke6 {[%clk 0:00:06]} 56. g5 {[%clk 0:00:03]}  hxg5+ {[%clk 0:00:07]} 57. Kxg5 {[%clk 0:00:03]}  Kf7 {[%clk 0:00:06]} 58. Kh6 {[%clk 0:00:04]}  Kg8 {[%clk 0:00:06]} 59. Kg6 {[%clk 0:00:03]}  Kh8 {[%clk 0:00:06]} 60. h6 {[%clk 0:00:04]}  Kg8 {[%clk 0:00:07]} 61. h7+ {[%clk 0:00:05]}  Kh8 {[%clk 0:00:08]} 62. Kh6 {[%clk 0:00:05]} 1/2-1/2


[Site "https://www.chess.com"]

[Event "Titled Tuesday Blitz November 15 Early 2022"]
[White "Melikhov, Evgeny V."]
[Black "Biastoch, Bennet"]
[WhiteFideId "4122046"]
[BlackFideId "12939889"]
[WhiteElo "2169"]
[BlackElo "2221"]
[Result "0-1"]
[Round "09"]
[TimeControl "180+1"]
[Date "2022.11.16"]
[WhiteClock "0:02:07"]
[BlackClock "0:02:20"]

1. d4 {[%clk 0:03:00]}  Nf6 {[%clk 0:02:56]} 2. c4 {[%clk 0:03:01]}  g6 {[%clk 0:02:54]} 3. Nc3 {[%clk 0:03:01]}  Bg7 {[%clk 0:02:54]} 4. e4 {[%clk 0:03:01]}  O-O {[%clk 0:02:55]} 5. Be3 {[%clk 0:03:00]}  d6 {[%clk 0:02:55]} 6. f3 {[%clk 0:03:00]}  Nc6 {[%clk 0:02:54]} 7. Nge2 {[%clk 0:03:00]}  e5 {[%clk 0:02:54]} 8. d5 {[%clk 0:03:00]}  Ne7 {[%clk 0:02:54]} 9. g4 {[%clk 0:03:00]}  c6 {[%clk 0:02:55]} 10. Ng3 {[%clk 0:02:50]}  cxd5 {[%clk 0:02:46]} 11. cxd5 {[%clk 0:02:50]}  Ne8 {[%clk 0:02:40]} 12. h4 {[%clk 0:02:27]}  f5 {[%clk 0:02:39]} 13. gxf5 {[%clk 0:02:27]}  gxf5 {[%clk 0:02:38]} 14. Bg5 {[%clk 0:02:21]}  Nf6 {[%clk 0:02:28]} 15. Bh3 {[%clk 0:02:07]}  h6 {[%clk 0:02:20]} 0-1


[Site "https://www.chess.com"]

[Event "Titled Tuesday Blitz November 15 Early 2022"]
[White "Mika, Tomasz"]
[Black "Matveeva, Olga"]
[WhiteFideId "1132970"]
[BlackFideId "24107018"]
[WhiteElo "2126"]
[BlackElo "2055"]
[Result "1-0"]
[Round "09"]
[TimeControl "180+1"]
[Date "2022.11.16"]
[WhiteClock "0:00:47"]
[BlackClock "0:00:09"]

1. Nf3 {[%clk 0:03:00]}  Nf6 {[%clk 0:02:57]} 2. c4 {[%clk 0:02:57]}  e6 {[%clk 0:02:56]} 3. g3 {[%clk 0:02:56]}  c5 {[%clk 0:02:54]} 4. Bg2 {[%clk 0:02:52]}  Nc6 {[%clk 0:02:53]} 5. Nc3 {[%clk 0:02:47]}  Be7 {[%clk 0:02:53]} 6. d4 {[%clk 0:02:43]}  cxd4 {[%clk 0:02:52]} 7. Nxd4 {[%clk 0:02:42]}  O-O {[%clk 0:02:50]} 8. O-O {[%clk 0:02:41]}  d5 {[%clk 0:02:38]} 9. cxd5 {[%clk 0:02:32]}  Nxd5 {[%clk 0:02:39]} 10. Nxd5 {[%clk 0:02:29]}  exd5 {[%clk 0:02:39]} 11. Be3 {[%clk 0:02:23]}  Be6 {[%clk 0:02:33]} 12. Nxe6 {[%clk 0:02:21]}  fxe6 {[%clk 0:02:34]} 13. Rc1 {[%clk 0:02:18]}  Rc8 {[%clk 0:02:31]} 14. b3 {[%clk 0:02:07]}  Kh8 {[%clk 0:02:15]} 15. Qd2 {[%clk 0:02:01]}  Bf6 {[%clk 0:02:13]} 16. Bc5 {[%clk 0:01:59]}  Re8 {[%clk 0:02:07]} 17. e4 {[%clk 0:01:58]}  d4 {[%clk 0:01:55]} 18. f4 {[%clk 0:01:55]}  e5 {[%clk 0:01:52]} 19. f5 {[%clk 0:01:51]}  Bg5 {[%clk 0:01:50]} 20. Qe2 {[%clk 0:01:49]}  Be3+ {[%clk 0:01:45]} 21. Kh1 {[%clk 0:01:49]}  Bxc1 {[%clk 0:01:43]} 22. Rxc1 {[%clk 0:01:50]}  b6 {[%clk 0:01:38]} 23. Ba3 {[%clk 0:01:49]}  d3 {[%clk 0:01:34]} 24. Qh5 {[%clk 0:01:47]}  Nd4 {[%clk 0:01:29]} 25. Rd1 {[%clk 0:01:43]}  Nc2 {[%clk 0:01:18]} 26. Bc1 {[%clk 0:01:38]}  Qd4 {[%clk 0:01:07]} 27. f6 {[%clk 0:01:28]}  gxf6 {[%clk 0:01:01]} 28. Qh6 {[%clk 0:01:24]}  Rf8 {[%clk 0:00:56]} 29. Rf1 {[%clk 0:01:24]}  Qd6 {[%clk 0:00:48]} 30. Bg5 {[%clk 0:01:20]}  Rc6 {[%clk 0:00:43]} 31. Bh3 {[%clk 0:01:12]}  Nd4 {[%clk 0:00:42]} 32. Bd7 {[%clk 0:01:06]}  Rcc8 {[%clk 0:00:19]} 33. Bxc8 {[%clk 0:01:02]}  Ne2 {[%clk 0:00:14]} 34. Bg4 {[%clk 0:00:53]}  Nd4 {[%clk 0:00:12]} 35. Bxf6+ {[%clk 0:00:49]}  Rxf6 {[%clk 0:00:09]} 36. Qxf6+ {[%clk 0:00:50]}  Qxf6 {[%clk 0:00:09]} 37. Rxf6 {[%clk 0:00:50]}  d2 {[%clk 0:00:10]} 38. Rf2 {[%clk 0:00:48]}  Ne2 {[%clk 0:00:09]} 39. Bxe2 {[%clk 0:00:47]} 1-0


[Site "https://www.chess.com"]

[Event "Titled Tuesday Blitz November 15 Early 2022"]
[White "Mrudul Dehankar"]
[Black "Gerbelli Neto, Eduardo"]
[WhiteFideId "25096990"]
[BlackFideId "2103281"]
[WhiteElo "2068"]
[BlackElo "2178"]
[Result "0-1"]
[Round "09"]
[TimeControl "180+1"]
[Date "2022.11.16"]
[WhiteClock "0:00:02"]
[BlackClock "0:00:10"]

1. e4 {[%clk 0:02:55]}  e5 {[%clk 0:02:59]} 2. Nf3 {[%clk 0:02:55]}  Nc6 {[%clk 0:02:57]} 3. Bb5 {[%clk 0:02:55]}  a6 {[%clk 0:02:57]} 4. Ba4 {[%clk 0:02:56]}  d6 {[%clk 0:02:58]} 5. O-O {[%clk 0:02:54]}  Bg4 {[%clk 0:02:58]} 6. c3 {[%clk 0:02:52]}  Qf6 {[%clk 0:02:58]} 7. Bxc6+ {[%clk 0:02:41]}  bxc6 {[%clk 0:02:57]} 8. d4 {[%clk 0:02:40]}  exd4 {[%clk 0:02:33]} 9. Qa4 {[%clk 0:02:23]}  Bd7 {[%clk 0:02:16]} 10. cxd4 {[%clk 0:02:04]}  c5 {[%clk 0:01:51]} 11. Qb3 {[%clk 0:02:03]}  cxd4 {[%clk 0:01:39]} 12. Bg5 {[%clk 0:02:02]}  Qg6 {[%clk 0:01:27]} 13. Qb7 {[%clk 0:01:43]}  Rc8 {[%clk 0:01:26]} 14. Qxa6 {[%clk 0:01:36]}  Be7 {[%clk 0:01:19]} 15. Bxe7 {[%clk 0:01:35]}  Nxe7 {[%clk 0:01:20]} 16. Nxd4 {[%clk 0:01:20]}  Bh3 {[%clk 0:00:56]} 17. Qa4+ {[%clk 0:01:15]}  c6 {[%clk 0:00:49]} 18. g3 {[%clk 0:01:11]}  Bxf1 {[%clk 0:00:47]} 19. Kxf1 {[%clk 0:01:11]}  Qxe4 {[%clk 0:00:42]} 20. Kg1 {[%clk 0:01:09]}  Qe1+ {[%clk 0:00:28]} 21. Kg2 {[%clk 0:01:08]}  O-O {[%clk 0:00:28]} 22. Nc2 {[%clk 0:00:58]}  Qc1 {[%clk 0:00:20]} 23. Nba3 {[%clk 0:00:35]}  Qxb2 {[%clk 0:00:19]} 24. Nc4 {[%clk 0:00:33]}  Qc3 {[%clk 0:00:17]} 25. N4e3 {[%clk 0:00:22]}  Ra8 {[%clk 0:00:16]} 26. Qh4 {[%clk 0:00:18]}  Ng6 {[%clk 0:00:16]} 27. Qg5 {[%clk 0:00:11]}  Rfe8 {[%clk 0:00:15]} 28. Rd1 {[%clk 0:00:10]}  Rxa2 {[%clk 0:00:14]} 29. Nd4 {[%clk 0:00:07]}  Qxe3 {[%clk 0:00:10]} 30. Qxe3 {[%clk 0:00:02]}  Rxe3 {[%clk 0:00:11]} 31. Nxc6 {[%clk 0:00:02]}  Ree2 {[%clk 0:00:10]} 32. Rxd6 {[%clk 0:00:02]}  Rxf2+ {[%clk 0:00:10]} 33. Kg1 {[%clk 0:00:02]}  h5 {[%clk 0:00:10]} 0-1


[Site "https://www.chess.com"]

[Event "Titled Tuesday Blitz November 15 Early 2022"]
[White "Omariev, Maksim"]
[Black "Rodriguez Fontecha, Marcos"]
[WhiteFideId "4193423"]
[BlackFideId "2256576"]
[WhiteElo "2513"]
[BlackElo "2263"]
[Result "0-1"]
[Round "09"]
[TimeControl "180+1"]
[Date "2022.11.16"]
[WhiteClock "0:00:44"]
[BlackClock "0:02:35"]

1. b3 {[%clk 0:02:54]}  a5 {[%clk 0:02:59]} 2. Bb2 {[%clk 0:02:54]}  a4 {[%clk 0:02:59]} 3. h3 {[%clk 0:02:55]}  e6 {[%clk 0:02:58]} 4. Qc1 {[%clk 0:02:54]}  Nc6 {[%clk 0:02:57]} 5. g4 {[%clk 0:02:54]}  d5 {[%clk 0:02:57]} 6. Bg2 {[%clk 0:02:54]}  h6 {[%clk 0:02:52]} 7. Nf3 {[%clk 0:02:54]}  Nf6 {[%clk 0:02:52]} 8. c4 {[%clk 0:02:51]}  Bd6 {[%clk 0:02:51]} 9. c5 {[%clk 0:02:47]}  Be7 {[%clk 0:02:51]} 10. d4 {[%clk 0:01:40]}  Ne4 {[%clk 0:02:45]} 11. Nbd2 {[%clk 0:01:38]}  Bf6 {[%clk 0:02:43]} 12. Nxe4 {[%clk 0:01:30]}  dxe4 {[%clk 0:02:44]} 13. Ne5 {[%clk 0:01:26]}  Nxd4 {[%clk 0:02:40]} 14. Nc4 {[%clk 0:00:55]}  axb3 {[%clk 0:02:40]} 15. O-O {[%clk 0:00:44]}  Nxe2+ {[%clk 0:02:35]} 0-1


[Site "https://www.chess.com"]

[Event "Titled Tuesday Blitz November 15 Early 2022"]
[White "Orlov, Georgi"]
[Black "Tuleyeva-Aketayeva, Dana"]
[WhiteFideId "2011271"]
[BlackFideId "13701932"]
[WhiteElo "2527"]
[BlackElo "2030"]
[Result "1-0"]
[Round "09"]
[TimeControl "180+1"]
[Date "2022.11.16"]
[WhiteClock "0:00:18"]
[BlackClock "0:00:02"]

1. e4 {[%clk 0:03:00]}  c5 {[%clk 0:02:59]} 2. Nf3 {[%clk 0:03:01]}  Nc6 {[%clk 0:02:59]} 3. Bb5 {[%clk 0:03:00]}  g6 {[%clk 0:02:58]} 4. O-O {[%clk 0:03:00]}  Bg7 {[%clk 0:02:56]} 5. Bxc6 {[%clk 0:03:00]}  dxc6 {[%clk 0:02:57]} 6. h3 {[%clk 0:03:01]}  Nf6 {[%clk 0:02:55]} 7. d3 {[%clk 0:03:00]}  O-O {[%clk 0:02:55]} 8. a4 {[%clk 0:02:57]}  Re8 {[%clk 0:02:54]} 9. Nc3 {[%clk 0:02:51]}  Nd7 {[%clk 0:02:51]} 10. a5 {[%clk 0:02:50]}  Nf8 {[%clk 0:02:40]} 11. e5 {[%clk 0:02:45]}  Be6 {[%clk 0:02:35]} 12. Re1 {[%clk 0:02:41]}  Bd5 {[%clk 0:02:28]} 13. Bd2 {[%clk 0:02:24]}  Qc7 {[%clk 0:02:10]} 14. Ne4 {[%clk 0:02:12]}  b6 {[%clk 0:02:01]} 15. c4 {[%clk 0:02:11]}  Bxe4 {[%clk 0:01:45]} 16. Rxe4 {[%clk 0:02:11]}  Red8 {[%clk 0:01:37]} 17. Qc2 {[%clk 0:01:57]}  Ne6 {[%clk 0:01:35]} 18. Bc3 {[%clk 0:01:42]}  b5 {[%clk 0:01:20]} 19. b3 {[%clk 0:01:29]}  b4 {[%clk 0:01:19]} 20. Bb2 {[%clk 0:01:25]}  Rd7 {[%clk 0:01:15]} 21. g3 {[%clk 0:01:10]}  Rad8 {[%clk 0:01:13]} 22. Ne1 {[%clk 0:01:06]}  Nd4 {[%clk 0:01:04]} 23. Bxd4 {[%clk 0:01:01]}  Rxd4 {[%clk 0:01:03]} 24. Rxd4 {[%clk 0:00:54]}  Rxd4 {[%clk 0:00:59]} 25. Nf3 {[%clk 0:00:53]}  Bxe5 {[%clk 0:00:41]} 26. Re1 {[%clk 0:00:53]}  Bf6 {[%clk 0:00:18]} 27. Nxd4 {[%clk 0:00:51]}  Bxd4 {[%clk 0:00:17]} 28. Kg2 {[%clk 0:00:51]}  e5 {[%clk 0:00:17]} 29. Qa2 {[%clk 0:00:46]}  Qe7 {[%clk 0:00:15]} 30. a6 {[%clk 0:00:43]}  Qf6 {[%clk 0:00:15]} 31. Qe2 {[%clk 0:00:41]}  Qd8 {[%clk 0:00:13]} 32. Qa2 {[%clk 0:00:36]}  Qf6 {[%clk 0:00:12]} 33. Re4 {[%clk 0:00:33]}  Qe6 {[%clk 0:00:10]} 34. Re2 {[%clk 0:00:26]}  Qf5 {[%clk 0:00:07]} 35. Re4 {[%clk 0:00:24]}  Qf6 {[%clk 0:00:06]} 36. f4 {[%clk 0:00:20]}  exf4 {[%clk 0:00:06]} 37. Rxf4 {[%clk 0:00:20]}  Qe6 {[%clk 0:00:06]} 38. Qc2 {[%clk 0:00:19]}  Qe3 {[%clk 0:00:05]} 39. Rf1 {[%clk 0:00:18]}  Kg7 {[%clk 0:00:04]} 40. Qd1 {[%clk 0:00:18]}  Bc3 {[%clk 0:00:02]} 41. Rf3 {[%clk 0:00:18]}  Qe5 {[%clk 0:00:02]} 42. Qf1 {[%clk 0:00:18]} 1-0


[Site "https://www.chess.com"]